bitfinex/quotes_ETHUSD_20251110
["timestamp","ask_amount","ask_price","bid_price","bid_amount"]
[1762787644128,0.4691,3540.8,3539.3,0.405504]
[1762787644336,1.04945032,3540.8,3539.3,0.405504]
[1762787644486,1.84006232,3540.7,3539.1,0.01]
[1762787644690,0.58035032,3540.6,3539.1,0.01]
[1762787645005,1.259712,3540.5,3539.1,0.01]
[1762787645172,3.29354348,3540.6,3539.1,0.01]
[1762787645173,2.82476881,3540.2,3539.1,0.01]
[1762787645374,0.4691,3540.6,3539.1,0.01]
[1762787645375,0.1851,3539.2,3539.1,0.01]
[1762787645573,0.1851,3539.2,3538.1,0.012]
[1762787645574,0.6685,3539.2,3538.1,0.012]
[1762787645775,0.4691,3539.1,3538.1,0.23585345]
[1762787645975,0.4691,3539.1,3538.5,2.82603678]
[1762787646193,0.4691,3539.1,3538.2,2.82623111]
[1762787646392,0.4691,3539.1,3538.4,0.405504]
[1762787646838,0.1851,3538.5,3538.4,0.405504]
[1762787647006,0.1851,3538.5,3538.4,0.72869105]
[1762787647211,0.6542,3538.5,3538.4,0.72869105]
[1762787647515,0.6542,3538.5,3538.4,3.55482715]
[1762787648295,0.6542,3538.5,3538.4,0.72869105]
[1762787648491,0.6542,3538.5,3537.9,0.405504]
[1762787648733,0.4691,3538.4,3537.9,3.23202526]
[1762787649144,0.4691,3538.4,3537.8,0.405504]
[1762787649433,0.4691,3538.4,3538.3,0.405504]
[1762787649635,0.4691,3538.4,3538.3,3.23171997]
[1762787649839,0.4834,3538.4,3538.3,1.01131295]
[1762787650213,0.9525,3538.4,3538.3,1.01131295]
[1762787650618,0.9525,3538.4,3537.8,0.405504]
[1762787650814,0.4691,3538.3,3538.1,0.405504]
[1762787651015,0.4691,3538.3,3538.1,3.23187823]
[1762787651320,0.4834,3538.2,3538.1,0.405504]
[1762787651739,0.4834,3538.2,3537.9,3.23200642]
[1762787651936,0.4691,3538.3,3538.1,0.405504]
[1762787652234,0.4691,3538.3,3537.7,0.002]
[1762787652422,0.4691,3538.3,3537.9,0.405504]
[1762787652621,0.1851,3538.5,3537.9,0.405504]
[1762787653037,0.6542,3538.5,3538.3,0.002]
[1762787653239,0.4834,3538.4,3538.3,0.002]
[1762787653598,0.9525,3538.4,3538.3,0.002]
[1762787655311,0.4834,3538.4,3538.3,0.002]
[1762787655511,0.9525,3538.4,3538.3,0.002]
[1762787655943,0.9525,3538.4,3537.9,0.002]
[1762787656155,0.4185,3538.0,3537.9,0.002]
[1762787656604,0.4185,3538.0,3537.7,0.002]
[1762787656605,4.97376762,3538.0,3537.7,0.002]
[1762787656803,4.97376762,3538.0,3537.3,0.002]
[1762787656804,0.4172,3537.6,3537.3,0.002]
[1762787657045,0.4821,3537.4,3536.1,0.01]
[1762787657250,0.4158,3537.2,3536.1,0.01]
[1762787657716,0.8849,3537.2,3536.1,0.01]
[1762787657922,1.259712,3537.1,3536.1,0.01]
[1762787658125,0.6665,3536.2,3536.1,0.01]
[1762787658651,1.1356,3536.2,3536.1,0.01]
[1762787661152,1.7136514,3536.2,3536.1,0.01]
[1762787661350,1.1356,3536.2,3536.1,0.01]
[1762787662420,4.54020011,3536.2,3536.1,0.01]
[1762787662629,4.54020011,3536.2,3535.1,0.01]
[1762787662630,1.259712,3536.1,3535.1,0.01]
[1762787662830,0.6016,3535.2,3535.1,0.01]
[1762787663231,1.0707,3535.2,3535.1,0.01]
[1762787664273,1.0699,3535.2,3535.1,0.01]
[1762787664616,1.259712,3535.1,3534.1,0.01]
[1762787664837,0.6658,3534.2,3534.1,0.01]
[1762787665239,1.128,3534.2,3534.1,0.01]
[1762787665652,0.6658,3534.2,3534.1,0.01]
[1762787666170,1.128,3534.2,3534.1,0.01]
[1762787666974,0.1851,3534.2,3534.1,0.01]
[1762787667368,0.4622,3534.6,3534.1,0.01]
[1762787667369,0.1851,3534.5,3534.1,0.01]
[1762787667951,0.1843,3535.2,3534.4,0.4392]
[1762787668644,0.1851,3535.5,3534.4,0.4392]
[1762787669646,0.1851,3535.7,3534.5,0.405504]
[1762787669846,0.1851,3535.7,3534.5,0.5505644]
[1762787670047,0.1851,3535.7,3534.7,0.405504]
[1762787670350,0.1851,3535.7,3534.3,0.405504]
[1762787670563,0.6473,3535.7,3534.3,0.405504]
[1762787670749,0.6473,3535.7,3534.2,0.1667]
[1762787670954,0.4622,3535.6,3534.3,0.405504]
[1762787671375,1.14851901,3536.7,3535.6,0.405504]
[1762787671574,0.1851,3537.3,3536.6,0.1199]
[1762787671906,0.01,3537.9,3536.7,0.405504]
[1762787672108,0.01,3537.9,3536.7,0.844704]
[1762787672610,0.1951,3536.9,3536.1,0.1199]
[1762787672752,0.001,3536.6,3536.1,0.1199]
[1762787672959,0.001,3536.6,3536.1,0.5591]
[1762787673511,0.001,3536.6,3536.2,0.844704]
[1762787673706,0.001,3536.6,3536.1,0.1199]
[1762787675691,0.001,3536.6,3535.5,0.1525]
[1762787675692,0.4622,3536.5,3535.5,0.1525]
[1762787675888,0.4622,3536.5,3535.2,0.1525]
[1762787676270,0.001,3536.6,3535.3,0.46748614]
[1762787676472,0.001,3536.6,3535.4,0.405504]
[1762787677005,0.001,3536.6,3535.6,0.405504]
[1762787677672,0.001,3536.6,3535.6,0.4392]
[1762787678365,0.001,3536.6,3535.7,0.405504]
[1762787679118,0.001,3536.6,3536.5,0.1199]
[1762787679475,0.001,3536.6,3535.4,0.405504]
[1762787679662,0.001,3536.6,3536.5,0.1199]
[1762787679857,0.001,3536.6,3535.6,0.405504]
[1762787680081,0.001,3536.6,3535.8,0.405504]
[1762787680797,0.001,3536.6,3535.9,0.405504]
[1762787681897,0.001,3536.6,3535.2,0.1525]
[1762787681898,0.4622,3536.5,3535.2,0.1525]
[1762787682098,0.1851,3535.9,3535.2,0.1525]
[1762787682299,1.42561901,3536.5,3535.2,0.1525]
[1762787682594,1.42561901,3536.5,3535.3,0.43379014]
[1762787682757,2.00245286,3536.5,3535.3,0.405504]
[1762787682957,0.57683385,3536.4,3535.3,0.405504]
[1762787683158,0.96341901,3536.5,3535.4,0.4392]
[1762787683373,0.57683385,3536.4,3535.5,0.405504]
[1762787683583,0.001,3536.6,3536.5,0.525404]
[1762787683972,0.001,3536.6,3536.5,3.79225846]
[1762787684299,0.001,3536.6,3536.5,0.90462985]
[1762787684506,0.001,3536.6,3536.5,0.964604]
[1762787684793,0.001,3536.6,3536.5,0.525404]
[1762787684958,0.001,3536.6,3536.5,0.964604]
[1762787685159,0.001,3536.6,3536.5,0.1199]
[1762787685384,0.001,3536.6,3536.2,0.1199]
[1762787685592,0.001,3536.6,3535.4,0.4392]
[1762787685994,0.96441901,3536.6,3535.4,0.4392]
[1762787686296,0.96441901,3536.6,3534.0,0.002]
[1762787686297,0.96341901,3536.0,3535.1,0.1525]
[1762787686484,0.96341901,3535.5,3534.3,0.4392]
[1762787686686,1.44512851,3535.7,3534.0,0.4412]
[1762787686687,0.96341901,3535.3,3534.0,0.4412]
[1762787686870,0.96341901,3535.1,3534.0,0.4412]
[1762787687075,0.96341901,3534.9,3534.0,0.4412]
[1762787687272,0.57683385,3535.2,3534.0,0.4412]
[1762787687273,0.57683385,3534.8,3534.0,0.4412]
[1762787687599,2.79996486,3535.1,3534.0,0.002]
[1762787687784,0.57683385,3535.0,3534.3,0.4392]
[1762787688099,1.54025286,3535.3,3534.3,0.4392]
[1762787688301,0.96261901,3535.3,3534.4,0.407504]
[1762787688797,1.44512851,3535.5,3534.4,0.407504]
[1762787689203,2.02196236,3535.4,3534.4,0.002]
[1762787689398,1.44512851,3535.4,3534.4,0.002]
[1762787689567,2.48416236,3535.3,3534.4,0.002]
[1762787689868,0.57683385,3535.2,3534.4,0.002]
[1762787690068,1.90732851,3535.3,3534.4,0.002]
[1762787690293,2.48416236,3535.2,3534.4,0.002]
[1762787690479,3.74387436,3535.2,3534.4,0.002]
[1762787690682,2.02196236,3535.1,3534.4,0.002]
[1762787690871,1.44512851,3534.9,3534.4,0.002]
[1762787691080,1.44512851,3534.6,3534.4,0.002]
[1762787691297,0.57683385,3534.5,3534.4,0.002]
[1762787691497,1.44512851,3534.7,3534.4,0.002]
[1762787691836,0.57683385,3534.6,3534.4,0.002]
[1762787691998,0.57683385,3534.7,3534.4,0.002]
[1762787692202,0.57683385,3534.8,3534.4,0.002]
[1762787692535,1.44512851,3535.0,3534.4,0.002]
[1762787692909,0.57683385,3534.9,3534.4,0.002]
[1762787693112,0.57683385,3535.1,3534.4,0.002]
[1762787693448,0.57683385,3535.2,3534.4,0.002]
[1762787693789,1.44512851,3535.5,3534.4,0.002]
[1762787693992,1.03903385,3535.4,3534.4,0.002]
[1762787694203,0.57683385,3535.3,3534.4,0.002]
[1762787694425,0.57683385,3535.5,3534.4,0.002]
[1762787694627,2.02196236,3535.6,3534.4,0.002]
[1762787695417,1.44512851,3535.4,3534.4,0.002]
[1762787695620,1.44512851,3535.2,3534.4,0.002]
[1762787695830,2.49706236,3535.1,3534.4,0.002]
[1762787696057,0.57683385,3535.0,3534.4,0.002]
[1762787696248,2.49706236,3535.1,3534.4,0.002]
[1762787696446,0.57683385,3535.0,3534.4,0.002]
[1762787696668,0.1929,3534.5,3534.4,0.002]
[1762787696820,4.57652135,3535.0,3534.4,0.002]
[1762787696821,1.44512851,3534.8,3534.4,0.002]
[1762787697021,3.28167436,3534.8,3534.4,0.002]
[1762787697217,0.1929,3534.9,3534.4,0.002]
[1762787697218,0.57683385,3534.7,3534.4,0.002]
[1762787697458,0.57683385,3534.8,3534.4,0.002]
[1762787697663,0.57683385,3535.0,3534.4,0.002]
[1762787697838,0.76973385,3535.2,3534.4,0.002]
[1762787698444,0.57683385,3535.2,3534.4,0.002]
[1762787698672,0.57683385,3535.2,3534.5,0.405504]
[1762787698984,0.57683385,3535.3,3534.5,0.405504]
[1762787699267,0.1929,3535.5,3534.5,0.405504]
[1762787700343,0.57683385,3535.7,3535.4,0.5917]
[1762787700548,0.4555,3535.5,3534.4,0.002]
[1762787700731,1.44512851,3535.7,3534.4,0.002]
[1762787700934,0.57683385,3535.8,3534.4,0.002]
[1762787700935,1.93302851,3535.6,3534.4,0.407504]
[1762787701266,0.1929,3535.9,3534.4,0.407504]
[1762787701267,0.57683385,3535.5,3534.6,0.405504]
[1762787701478,0.57683385,3535.8,3534.6,0.405504]
[1762787701638,0.1929,3535.9,3534.6,0.405504]
[1762787702237,0.4879,3535.8,3534.6,0.405504]
[1762787702698,0.57683385,3535.8,3534.7,0.405504]
[1762787702851,0.1929,3535.9,3534.7,0.405504]
[1762787703057,1.747612,3536.3,3534.9,0.405504]
[1762787703058,0.57683385,3536.1,3534.9,0.405504]
[1762787703252,1.93302851,3536.3,3534.9,0.405504]
[1762787703253,0.57683385,3536.2,3534.9,0.405504]
[1762787703458,1.06473385,3536.3,3534.9,0.405504]
[1762787703800,1.06473385,3536.3,3534.4,0.002]
[1762787703801,0.57683385,3536.3,3535.1,0.405504]
[1762787704104,0.001,3536.6,3535.1,0.405504]
[1762787704105,0.57683385,3536.4,3535.1,0.405504]
[1762787704420,0.4879,3536.5,3535.3,0.405504]
[1762787704593,0.4879,3536.5,3535.2,0.1525]
[1762787704908,0.4879,3536.5,3534.4,0.002]
[1762787704909,2.82787414,3536.3,3534.4,0.002]
[1762787705056,1.259712,3536.0,3534.4,0.4412]
[1762787705391,0.57683385,3535.9,3534.4,0.4412]
[1762787705591,1.259712,3536.3,3534.5,0.405504]
[1762787705592,0.57683385,3536.0,3534.5,0.405504]
[1762787705772,0.57683385,3536.2,3534.5,0.405504]
[1762787706084,0.57683385,3536.2,3534.7,0.405504]
[1762787706490,0.4879,3536.2,3534.4,0.002]
[1762787706655,1.259712,3536.1,3534.4,0.002]
[1762787706851,2.02196236,3536.1,3534.4,0.002]
[1762787707106,0.4879,3536.0,3534.5,0.4392]
[1762787707256,1.06473385,3536.0,3534.5,0.4392]
[1762787707456,0.57683385,3536.0,3534.6,3.23467283]
[1762787707751,0.57683385,3536.4,3534.8,0.405504]
[1762787707955,0.57683385,3536.4,3534.8,3.23450906]
[1762787708185,0.001,3536.2,3535.0,0.405504]
[1762787708587,0.001,3536.2,3535.1,0.5917]
[1762787709479,0.001,3536.2,3536.1,0.964604]
[1762787709884,0.001,3536.2,3536.1,0.405504]
[1762787710571,0.001,3536.2,3536.1,0.964604]
[1762787711465,0.001,3536.2,3536.1,1.403804]
[1762787711899,0.001,3536.2,3536.1,0.525404]
[1762787712340,0.4557,3536.2,3535.1,0.1525]
[1762787712619,0.4557,3536.2,3534.8,7.5]
[1762787712620,1.259712,3536.0,3534.8,7.5]
[1762787712783,0.5831785,3535.9,3534.8,0.75]
[1762787712966,0.1929,3535.9,3534.1,0.6159]
[1762787713170,0.1929,3535.9,3534.4,0.4412]
[1762787713423,0.7760785,3535.9,3534.4,0.4412]
[1762787713745,0.6808,3535.9,3534.4,0.4412]
[1762787714003,1.2639785,3535.9,3534.4,0.4412]
[1762787714204,0.5831785,3535.8,3534.4,0.4412]
[1762787714410,0.5831785,3535.8,3534.5,0.405504]
[1762787714609,0.4879,3535.8,3534.5,0.405504]
[1762787714770,1.0710785,3535.8,3534.5,0.405504]
[1762787714974,0.5831785,3535.7,3534.5,0.405504]
[1762787715171,1.0710785,3535.8,3534.4,0.4412]
[1762787715374,0.5831785,3535.7,3534.4,0.4412]
[1762787715602,0.4879,3535.7,3534.4,0.002]
[1762787715803,0.5831785,3535.7,3534.4,0.4412]
[1762787716015,0.4879,3535.6,3534.4,0.002]
[1762787716261,3.89949668,3535.6,3534.4,0.002]
[1762787716374,0.6484,3534.5,3534.4,0.002]
[1762787716572,1.1363,3534.5,3534.4,0.002]
[1762787716811,2.52397454,3534.5,3534.4,0.002]
[1762787717112,2.52397454,3534.5,3534.1,0.01]
[1762787717113,1.26426254,3534.5,3534.1,0.01]
[1762787717412,1.07136254,3534.4,3534.1,0.01]
[1762787717776,1.07136254,3534.3,3534.1,0.01]
[1762787718099,0.58346254,3534.2,3534.1,0.01]
[1762787718281,1.07136254,3534.2,3534.1,0.01]
[1762787718879,1.452612,3534.5,3534.1,0.01]
[1762787718880,0.1929,3534.5,3534.1,0.01]
[1762787719080,0.4879,3534.4,3534.1,0.01]
[1762787719816,0.4555,3534.2,3534.1,0.01]
[1762787720001,0.9434,3534.2,3534.1,0.01]
[1762787720329,1.52534155,3534.2,3534.0,0.002]
[1762787720481,1.46944155,3534.1,3534.0,0.002]
[1762787721318,2.72915355,3534.1,3534.0,0.002]
[1762787721522,1.46944155,3534.1,3534.0,0.002]
[1762787722323,2.72915355,3534.1,3533.8,0.003]
[1762787722535,2.72915355,3534.1,3533.1,0.01]
[1762787722536,0.6484,3533.8,3533.1,0.01]
[1762787722826,0.4879,3534.2,3533.2,0.1199]
[1762787723337,0.4555,3533.4,3533.1,0.01]
[1762787723527,0.9434,3533.4,3533.1,0.01]
[1762787724410,0.4555,3533.4,3533.1,0.01]
[1762787724735,0.9434,3533.4,3533.1,0.01]
[1762787726218,0.9434,3533.4,3533.3,0.005]
[1762787727131,2.82967054,3534.0,3533.3,0.005]
[1762787727132,1.751212,3533.9,3533.3,0.005]
[1762787727334,0.4915,3533.9,3533.3,0.005]
[1762787727497,0.473,3533.4,3533.3,0.005]
[1762787727695,0.4915,3533.8,3533.3,0.005]
[1762787727905,0.001,3534.1,3533.3,0.005]
[1762787728128,0.001,3534.1,3533.4,0.405504]
[1762787728306,0.001,3534.1,3533.3,0.005]
[1762787728887,0.001,3534.1,3533.4,0.405504]
[1762787729153,0.001,3534.1,3533.3,0.4442]
[1762787729154,0.001,3534.1,3534.0,0.844704]
[1762787729375,0.001,3534.1,3534.0,1.21216005]
[1762787729741,0.001,3534.1,3534.0,0.844704]
[1762787730374,0.001,3534.1,3534.0,1.283904]
[1762787730583,0.001,3534.1,3534.0,4.11355878]
[1762787730778,0.001,3534.5,3534.0,4.11355878]
[1762787730779,0.001,3534.5,3534.4,0.405504]
[1762787730945,0.001,3534.5,3534.4,1.011404]
[1762787731125,0.001,3534.9,3534.7,0.405504]
[1762787731338,0.001,3534.9,3534.8,0.844704]
[1762787731562,0.001,3534.9,3534.8,3.67371837]
[1762787731860,0.01,3535.9,3535.3,0.405504]
[1762787732065,0.01,3535.9,3535.4,0.51647485]
[1762787732266,0.1979,3535.9,3535.0,0.405504]
[1762787732628,0.1979,3535.9,3535.1,0.1525]
[1762787733067,0.4915,3535.8,3534.4,0.6059]
[1762787733438,0.4915,3535.8,3534.5,0.405504]
[1762787733764,0.1979,3535.9,3534.5,0.844704]
[1762787734124,0.1979,3535.9,3534.5,0.405504]
[1762787734325,0.1979,3535.9,3534.6,0.4392]
[1762787734529,0.1979,3535.9,3534.7,0.38406681]
[1762787734739,0.1979,3535.9,3534.4,0.1667]
[1762787734740,0.4915,3535.8,3534.4,0.1667]
[1762787734958,0.4915,3535.8,3534.4,0.6059]
[1762787735262,0.01,3535.9,3534.7,0.405504]
[1762787735472,0.01,3535.9,3535.8,0.1525]
[1762787735771,0.01,3535.9,3535.8,0.997204]
[1762787735969,0.01,3535.9,3535.8,0.558004]
[1762787736264,0.0092,3535.9,3535.8,0.997204]
[1762787737031,0.0002,3536.2,3536.1,3.23347832]
[1762787737254,0.0002,3536.2,3536.1,1.5100325]
[1762787737473,0.0002,3536.2,3536.1,3.67267832]
[1762787738595,0.01,3536.9,3536.1,3.67267832]
[1762787738596,0.01,3536.9,3536.3,0.405504]
[1762787738870,0.01,3536.9,3536.0,0.405504]
[1762787739078,0.1979,3536.9,3536.0,0.405504]
[1762787739431,0.01,3536.9,3536.0,0.405504]
[1762787739632,0.1979,3536.9,3536.0,0.405504]
[1762787739978,0.1979,3536.9,3535.8,0.1525]
[1762787740204,0.4915,3536.8,3535.8,0.1525]
[1762787740413,0.1979,3536.9,3535.8,0.1525]
[1762787741114,0.6894,3536.9,3535.8,0.1525]
[1762787742027,0.1979,3536.9,3535.5,0.405504]
[1762787742186,0.1979,3536.9,3534.4,0.1667]
[1762787742187,0.1879,3535.6,3534.4,0.1667]
[1762787742386,0.1879,3535.6,3534.4,0.6059]
[1762787742592,0.1879,3535.9,3534.4,0.6059]
[1762787742786,0.1879,3535.9,3534.5,0.4392]
[1762787743111,0.1879,3535.9,3534.6,0.34352887]
[1762787743497,0.1879,3535.9,3534.8,0.405504]
[1762787744140,0.1879,3534.9,3533.6,0.4392]
[1762787744419,0.6794,3535.9,3534.1,0.1767]
[1762787744620,0.4915,3535.8,3534.2,0.02829494]
[1762787744783,0.4915,3535.8,3534.2,0.405504]
[1762787744974,0.4915,3535.8,3534.2,0.844704]
[1762787745169,0.4915,3535.8,3534.8,0.002]
[1762787745404,1.751212,3535.8,3534.8,0.002]
[1762787745775,0.4915,3535.7,3534.8,0.002]
[1762787747117,2.82892839,3535.0,3534.4,0.002]
[1762787747280,2.8292317,3534.6,3534.4,0.002]
[1762787747475,1.259712,3535.1,3534.4,0.002]
[1762787747713,4.08886556,3534.7,3534.4,0.002]
[1762787747918,1.259712,3534.5,3534.4,0.002]
[1762787748166,0.4915,3535.0,3534.4,0.002]
[1762787748167,1.259712,3534.7,3534.4,0.002]
[1762787748312,1.259712,3535.4,3534.4,0.002]
[1762787748313,0.4915,3535.2,3534.4,0.002]
[1762787748521,0.58061235,3535.6,3534.4,0.002]
[1762787748759,0.1889,3535.9,3534.4,0.002]
[1762787748760,0.6804,3535.9,3534.4,0.002]
[1762787748923,0.6804,3535.9,3534.5,0.405504]
[1762787749253,0.1889,3535.9,3534.5,0.405504]
[1762787749454,0.001,3535.9,3534.7,0.405504]
[1762787750268,0.4925,3535.9,3534.4,0.002]
[1762787750762,0.001,3535.9,3534.5,0.405504]
[1762787751654,0.4925,3535.9,3534.4,0.002]
[1762787752017,0.4925,3535.9,3534.4,0.4412]
[1762787752219,0.4925,3535.9,3534.4,0.38729608]
[1762787752420,0.1879,3535.8,3534.4,0.002]
[1762787752752,0.1879,3535.8,3534.5,0.405504]
[1762787753755,0.1879,3535.8,3534.5,0.4392]
[1762787754118,0.1879,3535.7,3534.4,0.002]
[1762787754422,0.1879,3535.7,3534.5,0.405504]
[1762787755034,0.1879,3535.7,3534.7,0.405504]
[1762787755670,0.001,3535.9,3534.8,0.4392]
[1762787755843,0.001,3535.9,3534.9,0.43379334]
[1762787756049,0.001,3535.9,3535.8,0.558004]
[1762787756267,0.001,3535.9,3535.8,0.997204]
[1762787756449,0.001,3535.9,3535.8,0.558004]
[1762787757168,0.001,3535.9,3535.8,0.997204]
[1762787757489,0.001,3535.9,3535.8,3.82541826]
[1762787757637,0.001,3535.9,3535.8,4.49361944]
[1762787757949,0.001,3536.3,3536.1,2.82792042]
[1762787758150,0.001,3536.3,3536.2,3.26167728]
[1762787758354,0.001,3536.7,3536.6,3.2330785]
[1762787758551,0.001,3536.7,3536.6,0.405504]
[1762787758946,0.001,3536.7,3535.8,0.1525]
[1762787758947,0.001,3536.7,3536.1,0.4392]
[1762787759148,0.001,3536.7,3536.2,0.405504]
[1762787759777,0.001,3536.7,3535.9,0.405504]
[1762787760142,0.0002,3536.7,3535.8,0.1525]
[1762787760350,0.4996,3536.6,3535.5,0.1525]
[1762787760982,0.1934,3535.6,3534.4,0.002]
[1762787761347,0.693,3535.6,3534.4,0.002]
[1762787761644,1.952712,3535.6,3534.4,0.002]
[1762787761844,0.58377481,3535.5,3534.4,0.6079]
[1762787762044,0.1934,3535.6,3534.4,0.6079]
[1762787762657,0.1934,3535.6,3534.4,0.1687]
[1762787762894,0.1934,3535.6,3534.4,0.002]
[1762787762895,2.82845424,3535.5,3534.4,0.002]
[1762787763074,1.55555569,3535.4,3534.4,0.002]
[1762787763417,2.82925449,3534.5,3534.4,0.002]
[1762787763621,0.58377481,3534.5,3534.1,0.01]
[1762787763789,0.97178088,3534.6,3534.1,0.01]
[1762787763790,0.1934,3534.2,3534.1,0.01]
[1762787764192,0.58377481,3534.4,3534.1,0.01]
[1762787764515,0.4996,3534.3,3534.1,0.01]
[1762787765216,0.1934,3534.6,3534.1,0.01]
[1762787765416,1.92783802,3535.9,3534.1,0.01]
[1762787765417,0.97178088,3535.8,3534.1,0.01]
[1762787765626,0.1934,3534.2,3534.1,0.01]
[1762787766217,1.259712,3534.9,3534.1,0.01]
[1762787766375,1.84201065,3534.8,3534.1,0.01]
[1762787766571,0.58229865,3534.7,3534.1,0.01]
[1762787766825,0.4996,3535.0,3534.1,0.01]
[1762787767177,0.58227537,3535.4,3534.1,0.01]
[1762787767394,0.4996,3535.3,3534.1,0.01]
[1762787769148,1.08210983,3535.3,3534.1,0.01]
[1762787769437,0.1934,3534.2,3534.1,0.01]
[1762787769600,0.58250983,3534.9,3534.1,0.01]
[1762787769774,0.4996,3534.8,3534.1,0.01]
[1762787770212,1.08210983,3534.8,3534.1,0.01]
[1762787770443,0.1934,3534.2,3534.1,0.01]
[1762787770739,0.1934,3534.5,3534.1,0.01]
[1762787771510,0.693,3534.5,3534.1,0.01]
[1762787772019,0.1934,3534.5,3534.1,0.01]
[1762787772225,0.4996,3534.4,3534.1,0.01]
[1762787772419,0.1934,3534.5,3534.1,0.01]
[1762787772746,0.1934,3534.8,3534.1,0.01]
[1762787772909,1.259712,3534.7,3534.1,0.01]
[1762787773108,0.58267845,3534.6,3534.1,0.01]
[1762787773310,1.259712,3534.3,3534.1,0.01]
[1762787773546,4.6718851,3534.2,3534.1,0.01]
[1762787773920,5.1714851,3534.2,3534.1,0.01]
[1762787775449,2.34199045,3534.2,3534.1,0.01]
[1762787776922,2.34199045,3534.2,3526.2,0.1946]
[1762787776923,0.53651744,3532.4,3526.2,0.1946]
[1762787777124,0.81119878,3529.5,3528.0,0.36853692]
[1762787777365,1.44512851,3528.5,3527.7,0.5185]
[1762787777510,1.45175037,3527.8,3527.0,0.1946]
[1762787777716,0.09877909,3527.7,3527.0,0.1946]
[1762787777925,0.96786908,3527.5,3527.1,0.71759144]
[1762787778171,0.28635037,3527.6,3527.1,1.22950569]
[1762787778383,0.08875037,3528.0,3527.2,2.83511]
[1762787778547,1.92683802,3528.3,3527.0,0.1946]
[1762787778864,1.92683802,3528.4,3527.0,0.1946]
[1762787779079,1.92683802,3527.7,3527.0,0.1946]
[1762787779240,1.92683802,3527.6,3527.0,0.1946]
[1762787779566,1.92683802,3527.2,3526.7,0.4739]
[1762787779781,1.92683802,3527.2,3526.6,0.1946]
[1762787779970,1.92683802,3527.2,3526.7,0.4739]
[1762787780262,1.92683802,3526.9,3526.6,0.1946]
[1762787780464,1.92683802,3526.8,3526.6,0.1946]
[1762787780662,3.66825952,3527.4,3526.6,0.1946]
[1762787780663,1.92683802,3526.7,3526.6,0.1946]
[1762787780865,1.92683802,3526.7,3526.6,0.6685]
[1762787781034,1.92683802,3526.9,3526.6,3.50402159]
[1762787781228,1.92683802,3526.9,3526.7,0.4739]
[1762787781458,1.92683802,3526.8,3526.7,0.4739]
[1762787781667,1.91213622,3526.8,3526.7,0.4739]
[1762787781843,2.40854752,3527.1,3526.1,0.4739]
[1762787782180,1.91214327,3526.6,3526.3,2.83582556]
[1762787782379,1.91214327,3526.8,3526.4,0.405504]
[1762787782594,1.91214327,3526.9,3526.6,0.405504]
[1762787782866,1.91214327,3526.9,3526.6,3.24108699]
[1762787783048,1.91214327,3526.8,3526.7,0.4739]
[1762787783244,2.40854752,3527.0,3526.7,0.4739]
[1762787783466,2.40854752,3527.1,3526.7,0.4739]
[1762787783677,2.40854752,3527.2,3526.8,0.405504]
[1762787783874,1.90626029,3526.9,3526.8,3.24093555]
[1762787784083,1.90626029,3527.0,3526.9,3.71475515]
[1762787784383,3.37196654,3527.9,3527.4,0.405504]
[1762787784675,3.37196654,3528.6,3527.9,0.405504]
[1762787784849,3.37196654,3528.6,3528.4,0.5839]
[1762787785175,3.37196654,3528.8,3528.5,0.405504]
[1762787785455,3.37196654,3529.0,3528.9,2.83374422]
[1762787785628,3.37196654,3529.0,3528.7,2.8338251]
[1762787785766,3.37196654,3529.2,3528.8,3.29461017]
[1762787786116,0.4684,3530.5,3528.5,3.23954281]
[1762787786117,3.37196654,3529.3,3528.9,2.85079473]
[1762787786403,3.37196654,3529.3,3529.2,2.83350334]
[1762787786591,3.37196654,3529.7,3529.3,2.83340133]
[1762787786804,3.37196654,3529.7,3529.4,2.83334091]
[1762787787114,3.37196654,3529.7,3529.5,2.83326094]
[1762787787313,3.37196654,3529.7,3529.6,2.83318223]
[1762787787477,3.37196654,3529.7,3528.6,2.83398514]
[1762787787679,1.90770715,3528.9,3528.8,3.23932852]
[1762787788073,3.37196654,3529.9,3528.8,3.23932852]
[1762787788074,3.37196654,3529.9,3529.8,2.8330217]
[1762787788305,3.37196654,3529.9,3529.8,3.2776217]
[1762787788506,3.37196654,3530.4,3530.3,2.83262045]
[1762787788808,3.37196654,3530.4,3530.3,3.23812445]
[1762787789109,3.37196654,3530.9,3530.8,2.83221932]
[1762787789313,3.37196654,3531.4,3531.1,0.14]
[1762787789476,3.37196654,3531.4,3531.2,0.4446]
[1762787789678,3.37196654,3531.8,3531.3,0.405504]
[1762787789876,3.37196654,3531.8,3531.7,2.83149757]
[1762787790118,3.37196654,3532.5,3531.4,0.4446]
[1762787790323,1.83404991,3532.4,3531.4,0.4446]
[1762787790618,1.83404991,3532.4,3531.1,0.14]
[1762787790619,3.37196654,3532.1,3531.3,2.83180825]
[1762787790918,3.37196654,3532.1,3531.3,0.405504]
[1762787790919,0.57433791,3532.0,3531.3,0.405504]
[1762787791241,0.57433791,3531.9,3531.8,3.2369214]
[1762787791575,0.57433791,3531.9,3531.4,0.4446]
[1762787791794,0.57433791,3531.8,3531.7,2.83149179]
[1762787791994,0.57433791,3531.8,3531.7,3.23699579]
[1762787792445,0.57433791,3531.8,3531.7,3.68159579]
[1762787792964,0.57433791,3531.8,3531.7,3.27609179]
[1762787793209,0.00185,3533.0,3532.4,0.405504]